bitfinex-derivatives/quotes_SOLF0:USTF0_20241230
["timestamp","ask_amount","ask_price","bid_price","bid_amount"]
[1735542847269,8.31412721,192.44,192.36,8.31412721]
[1735542847463,8.31412721,192.44,192.42,2.6038]
[1735542848762,8.31412721,192.46,192.42,2.6038]
[1735542849267,4.6067,192.55,192.4,8.31412721]
[1735542849570,8.31412721,192.48,192.42,8.31412721]
[1735542849770,8.31412721,192.48,192.43,2.6035]
[1735542850070,8.31412721,192.48,192.39,2.98]
[1735542850267,8.31412721,192.48,192.4,8.31412721]
[1735542850766,8.31412721,192.48,192.42,2.6036]
[1735542850966,8.31412721,192.48,192.4,8.31412721]
[1735542852569,8.31412721,192.48,192.43,2.6036]
[1735542856981,8.31412721,192.5,192.45,2.6033]
[1735542857968,8.31412721,192.5,192.44,2.6035]
[1735542859474,8.31412721,192.5,192.43,8.31412721]
[1735542859672,8.31412721,192.52,192.45,8.31412721]
[1735542860575,7.2088,192.55,192.47,8.31412721]
[1735542860879,8.31412721,192.54,192.47,11.29412721]
[1735542861377,8.31412721,192.56,192.49,8.31412721]
[1735542861980,8.31412721,192.56,192.51,2.6025]
[1735542864079,8.31412721,192.54,192.47,11.29412721]
[1735542865485,8.31412721,192.54,192.49,8.31412721]
[1735542866985,8.31412721,192.54,192.45,2.6033]
[1735542867287,8.31412721,192.54,192.47,8.31412721]
[1735542867985,8.31412721,192.54,192.5,2.6025]
[1735542870786,8.31412721,192.54,192.49,2.6028]
[1735542871286,8.31412721,192.52,192.47,2.6031]
[1735542871986,8.31412721,192.52,192.47,5.5831]
[1735542872783,8.31412721,192.5,192.47,2.6031]
[1735542872986,8.31412721,192.5,192.46,2.98]
[1735542873688,8.31412721,192.48,192.44,2.98]
[1735542873891,8.31412721,192.48,192.41,2.98]
[1735542875590,10.91712721,192.48,192.42,2.6037]
[1735542875789,8.31412721,192.46,192.41,2.98]
[1735542875984,8.31412721,192.46,192.39,2.604]
[1735542875985,10.91742721,192.46,192.39,2.604]
[1735542876185,10.91742721,192.46,192.38,36.72894003]
[1735542876186,8.31412721,192.44,192.38,28.41481282]
[1735542876588,10.91772721,192.44,192.38,7.20832458]
[1735542877289,10.91772721,192.44,192.38,9.81262458]
[1735542877589,10.91772721,192.44,192.38,2.6043]
[1735542879584,8.31412721,192.44,192.39,2.6041]
[1735542881296,8.31412721,192.46,192.41,2.6039]
[1735542881695,8.31412721,192.44,192.38,8.31412721]
[1735542881898,8.31412721,192.46,192.38,8.31412721]
[1735542883397,8.31412721,192.46,192.41,2.6039]
[1735542884993,8.31412721,192.46,192.38,8.31412721]
[1735542885202,8.31412721,192.46,192.42,2.6036]
[1735542886301,8.31412721,192.46,192.42,2.98]
[1735542886605,8.31412721,192.46,192.43,2.6036]
[1735542887205,8.31412721,192.48,192.43,2.6036]
[1735542889904,10.91702721,192.48,192.43,2.6036]
[1735542890500,10.91702721,192.48,192.42,5.5837]
[1735542892505,10.91732721,192.46,192.4,10.91812721]
[1735542892706,8.31412721,192.46,192.4,2.98]
[1735542893398,2.6034,192.45,192.4,2.98]
[1735542898617,2.6034,192.45,192.4,5.584]
[1735542898915,2.6034,192.45,192.4,2.98]
[1735542900324,8.31412721,192.42,192.36,15.52245179]
[1735542900522,8.31412721,192.42,192.36,7.20832458]
[1735542900817,2.604,192.4,192.36,7.20832458]
[1735542901022,10.91812721,192.4,192.36,7.20832458]
[1735542901220,8.31412721,192.4,192.35,7.20832458]
[1735542901420,2.6042,192.39,192.35,7.20832458]
[1735542901621,8.31412721,192.4,192.35,7.20832458]
[1735542901817,8.31412721,192.42,192.36,8.31412721]
[1735542902023,8.31412721,192.42,192.37,2.6044]
[1735542902225,8.31412721,192.42,192.36,8.31412721]
[1735542902523,3.0982,192.44,192.36,8.31412721]
[1735542902723,8.31412721,192.41,192.36,8.31412721]
[1735542903323,10.91782721,192.43,192.36,8.31412721]
[1735542903521,8.31412721,192.43,192.36,8.31412721]
[1735542903723,8.31412721,192.43,192.37,2.98]
[1735542904424,8.31412721,192.43,192.39,2.6041]
[1735542905025,2.6042,192.39,192.34,28.41481282]
[1735542905225,8.31412721,192.38,192.34,28.41481282]
[1735542905826,8.31412721,192.38,192.33,2.605]
[1735542906026,10.91842721,192.38,192.33,2.605]
[1735542906225,10.91842721,192.38,192.32,10.91922721]
[1735542907431,8.31412721,192.38,192.29,28.41481282]
[1735542907724,8.31412721,192.36,192.29,28.41481282]
[1735542908222,8.31412721,192.36,192.29,7.20832458]
[1735542908424,2.6049,192.34,192.29,7.20832458]
[1735542908621,10.91902721,192.34,192.29,7.20832458]
[1735542909127,10.91902721,192.34,192.28,10.91972721]
[1735542909529,10.91902721,192.34,192.28,8.31412721]
[1735542909824,8.31412721,192.34,192.29,2.6055]
[1735542910431,10.91902721,192.34,192.29,2.6055]
[1735542912225,8.31412721,192.32,192.27,2.6058]
[1735542912420,8.31412721,192.32,192.25,28.41481282]
[1735542913118,2.6049,192.34,192.27,2.6058]
[1735542913321,8.31412721,192.35,192.29,8.31412721]
[1735542913521,8.31412721,192.37,192.31,8.31412721]
[1735542913723,8.31412721,192.39,192.34,2.6048]
[1735542913927,8.31412721,192.39,192.31,8.31412721]
[1735542915538,10.91842721,192.39,192.33,2.6049]
[1735542915836,8.31412721,192.39,192.31,8.31412721]
[1735542916136,8.31412721,192.39,192.33,8.31412721]
[1735542916333,8.31412721,192.39,192.33,11.29412721]
[1735542916537,10.91842721,192.39,192.33,5.5849]
[1735542916732,8.31412721,192.37,192.33,2.98]
[1735542917134,8.31412721,192.37,192.31,8.31412721]
[1735542917334,8.31412721,192.37,192.29,11.29412721]
[1735542917735,10.91852721,192.37,192.32,2.6051]
[1735542917931,10.91852721,192.37,192.29,11.29412721]
[1735542918433,8.31412721,192.35,192.31,2.6052]
[1735542918643,8.31412721,192.35,192.29,2.98]
[1735542919233,8.31412721,192.35,192.29,11.29412721]
[1735542919642,8.31412721,192.35,192.31,2.6052]
[1735542920042,8.31412721,192.35,192.29,11.29412721]
[1735542921636,8.31412721,192.37,192.29,11.29412721]
[1735542921848,8.31412721,192.37,192.32,2.605]
[1735542922544,8.31412721,192.37,192.33,2.605]
[1735542923736,8.31412721,192.37,192.34,2.6047]
[1735542923942,8.31412721,192.39,192.31,8.31412721]
[1735542924335,8.31412721,192.37,192.31,8.31412721]
[1735542926443,4.575,192.42,192.31,8.31412721]
[1735542926638,8.31412721,192.39,192.31,8.31412721]
[1735542927041,8.31412721,192.39,192.35,2.6046]
[1735542927242,8.31412721,192.39,192.31,8.31412721]
[1735542927643,8.31412721,192.39,192.33,2.6049]
[1735542927946,8.31412721,192.39,192.31,8.31412721]
[1735542928337,8.31412721,192.39,192.34,2.6047]
[1735542928739,8.31412721,192.39,192.31,15.52245179]
[1735542928740,8.31412721,192.37,192.31,15.52245179]
[1735542928949,8.31412721,192.37,192.32,2.605]
[1735542929548,7.1788,192.42,192.33,8.31412721]
[1735542929745,8.31412721,192.44,192.36,8.31412721]
[1735542930349,8.26550257,192.44,192.37,8.31412721]
[1735542931353,8.31412721,192.42,192.35,8.31412721]
[1735542931553,10.91822721,192.4,192.35,2.98]
[1735542931753,8.31412721,192.38,192.34,7.20832458]
[1735542932560,8.31412721,192.38,192.34,9.81312458]
[1735542932746,8.31412721,192.38,192.34,7.20832458]
[1735542932951,8.31412721,192.38,192.33,11.29412721]
[1735542933755,8.31412721,192.38,192.34,4.11269142]
[1735542934150,8.31412721,192.38,192.34,6.71749142]
[1735542935160,8.31412721,192.38,192.34,2.6048]
[1735542938767,8.31412721,192.38,192.35,2.6047]
[1735542939565,8.31412721,192.4,192.36,2.6045]
[1735542940376,8.31412721,192.4,192.35,2.6047]
[1735542940667,8.31412721,192.38,192.33,31.39481282]
[1735542941165,8.31412721,192.36,192.33,31.01971282]
[1735542941761,8.31412721,192.36,192.33,2.6049]
[1735542942170,8.31412721,192.38,192.34,2.6048]
[1735542942667,8.31412721,192.38,192.32,2.98]
[1735542942864,8.31412721,192.36,192.32,2.98]
[1735542943761,8.31412721,192.36,192.31,47.49384186]
[1735542943964,8.31412721,192.34,192.31,44.88864186]
[1735542944165,8.31412721,192.34,192.3,7.20832458]
[1735542945270,8.31412721,192.34,192.29,47.49728976]
[1735542945668,8.31412721,192.34,192.29,44.89178976]
[1735542945971,8.31412721,192.34,192.32,2.6051]
[1735542946170,8.31412721,192.36,192.32,2.6051]
[1735542947474,8.31412721,192.36,192.33,2.6049]
[1735542948573,8.31412721,192.36,192.3,7.20832458]
[1735542948769,8.31412721,192.38,192.31,8.31412721]
[1735542948979,8.31412721,192.38,192.31,15.52245179]
[1735542949175,8.31412721,192.38,192.32,2.98]
[1735542949970,8.31412721,192.38,192.32,10.18832458]
[1735542951471,8.31412721,192.4,192.38,2.6043]
[1735542951672,8.31412721,192.4,192.33,8.31412721]
[1735542951871,8.31412721,192.42,192.35,8.31412721]
[1735542952873,8.31412721,192.42,192.36,4.12041246]
[1735542953073,8.31412721,192.42,192.37,2.98]
[1735542953476,8.31412721,192.42,192.4,2.604]
[1735542954681,4.6291,192.49,192.41,8.31412721]
[1735542954872,12.94322721,192.49,192.42,2.98]
[1735542955174,9.86842721,192.49,192.42,2.98]
[1735542955579,8.31412721,192.49,192.42,2.98]
[1735542955878,8.31412721,192.49,192.48,2.6029]
[1735542957680,8.31412721,192.51,192.5,2.6026]
[1735542960486,8.31412721,192.51,192.48,2.6028]
[1735542961217,8.31412721,192.51,192.43,8.31412721]
[1735542961380,8.31412721,192.51,192.49,2.6028]
[1735542962075,8.31412721,192.51,192.47,2.603]
[1735542962283,8.31412721,192.51,192.43,8.31412721]
[1735542962482,2.9871,192.54,192.43,8.31412721]
[1735542962781,8.31412721,192.51,192.43,8.31412721]
[1735542962986,8.31412721,192.51,192.45,2.6033]
[1735542963186,8.31412721,192.51,192.43,8.31412721]
[1735542963885,8.31412721,192.51,192.48,2.6029]
[1735542969085,1.4634,192.59,192.49,8.31412721]
[1735542969086,8.31412721,192.58,192.49,8.31412721]
[1735542969286,1.4634,192.59,192.51,8.31412721]
[1735542969482,8.31412721,192.61,192.55,8.31412721]
[1735542969685,8.31412721,192.61,192.58,2.6015]
[1735542970285,8.31412721,192.61,192.57,2.6017]
[1735542970486,8.31412721,192.61,192.56,2.98]
[1735542971884,8.31412721,192.61,192.57,2.6017]
[1735542973097,8.31412721,192.61,192.56,2.98]
[1735542973296,8.31412721,192.61,192.58,2.6016]
[1735542973598,2.601,192.63,192.58,2.6016]
[1735542973599,10.91512721,192.63,192.58,2.6016]
[1735542975294,8.31412721,192.63,192.59,2.6014]
[1735542976500,10.91512721,192.63,192.57,2.6016]
[1735542976703,8.31412721,192.63,192.57,2.6016]
[1735542977299,2.6014,192.6,192.53,8.31412721]
[1735542977494,8.31412721,192.59,192.54,2.98]
[1735542978993,10.91572721,192.59,192.54,2.98]
[1735542979191,8.31412721,192.57,192.5,8.31412721]
[1735542979395,8.31412721,192.55,192.49,2.98]
[1735542979592,8.31412721,192.53,192.48,2.98]
[1735542980099,8.31412721,192.51,192.43,11.29412721]
[1735542980492,8.31412721,192.51,192.44,2.98]
[1735542981495,8.31412721,192.51,192.45,8.31412721]
[1735542982203,4.7444,192.57,192.45,8.31412721]
[1735542982395,8.31412721,192.54,192.47,8.31412721]
[1735542982891,10.91632721,192.54,192.48,2.6029]
[1735542983694,10.91632721,192.54,192.47,10.91722721]
[1735542983895,8.31412721,192.54,192.47,8.31412721]
[1735542984701,2.6024,192.53,192.47,8.31412721]
[1735542985101,8.31412721,192.52,192.47,8.31412721]
[1735542985603,8.31412721,192.52,192.47,10.91722721]
[1735542985901,4.7444,192.57,192.47,8.31412721]
[1735542985902,8.31412721,192.54,192.47,8.31412721]
[1735542986503,2.602,192.55,192.49,8.31412721]
[1735542986703,8.31412721,192.56,192.49,10.91692721]
[1735542986902,2.6022,192.54,192.49,10.91692721]
[1735542987303,2.602,192.55,192.49,10.91692721]
[1735542988002,8.31412721,192.54,192.47,8.31412721]
[1735542988602,2.6025,192.52,192.47,10.91722721]
[1735542990506,8.31412721,192.54,192.47,8.31412721]
[1735542990806,8.31412721,192.54,192.49,2.6028]
[1735542992110,10.91622721,192.54,192.49,2.6028]
[1735542992704,8.31412721,192.54,192.5,2.6026]
[1735542992906,8.31412721,192.54,192.47,8.31412721]
[1735542993302,10.91632721,192.54,192.49,2.6028]
[1735542994211,8.31412721,192.54,192.5,2.6026]
[1735542995809,8.31412721,192.54,192.47,8.31412721]
[1735542996012,3.1512,192.57,192.51,8.31412721]
[1735542996314,8.31412721,192.58,192.51,8.31412721]
[1735542996511,8.31412721,192.58,192.53,2.6022]
[1735542997218,2.6016,192.59,192.54,2.6021]
[1735542997916,8.31412721,192.58,192.51,8.31412721]
[1735542998217,10.91582721,192.58,192.52,2.6023]
[1735542998417,4.6964,192.62,192.51,8.31412721]
[1735542998611,8.31412721,192.6,192.53,8.31412721]
[1735542999018,10.91552721,192.6,192.56,2.6018]
[1735542999214,8.31412721,192.6,192.53,8.31412721]
[1735542999415,13.01052721,192.62,192.55,8.31412721]
[1735542999614,14.10652721,192.62,192.58,2.6015]
[1735543001318,14.10652721,192.62,192.55,8.31412721]
[1735543001319,11.50542721,192.62,192.59,2.6014]
[1735543001517,11.50542721,192.62,192.55,8.31412721]
[1735543001518,10.91502721,192.64,192.57,8.31412721]
[1735543002320,10.91502721,192.64,192.59,2.6014]
[1735543003513,8.31412721,192.64,192.55,8.31412721]
[1735543003714,8.31412721,192.62,192.54,2.98]
[1735543003915,8.31412721,192.6,192.53,8.31412721]
[1735543004119,8.31412721,192.6,192.54,2.98]
[1735543005220,8.31412721,192.6,192.56,2.6018]
[1735543006924,10.91542721,192.6,192.55,2.602]
[1735543007818,8.31412721,192.6,192.54,2.98]
[1735543008024,8.31412721,192.56,192.5,28.41481282]
[1735543008321,8.31412721,192.52,192.5,28.41481282]
[1735543009023,10.91652721,192.52,192.5,28.41481282]
[1735543010127,10.91652721,192.52,192.48,2.6029]
[1735543010922,8.31412721,192.52,192.49,2.6027]
[1735543011429,8.31412721,192.54,192.5,2.6027]
[1735543012925,10.91632721,192.54,192.5,2.6027]
[1735543013420,8.31412721,192.54,192.47,8.31412721]
[1735543013621,2.6024,192.52,192.48,2.6029]
[1735543014323,2.6023,192.53,192.49,2.6028]
[1735543015725,8.31412721,192.54,192.49,2.6028]
[1735543015927,10.91632721,192.54,192.49,2.6028]
[1735543016325,8.31412721,192.54,192.47,8.31412721]
[1735543016528,8.31412721,192.54,192.51,2.6025]
[1735543017531,8.31412721,192.54,192.52,2.6024]
[1735543018831,4.1731,192.57,192.53,2.6023]
[1735543019126,8.31412721,192.56,192.49,8.31412721]
[1735543019326,8.31412721,192.56,192.53,2.6023]
[1735543021435,8.31412721,192.56,192.52,2.6024]
[1735543022830,10.91602721,192.56,192.5,2.6025]
[1735543023034,8.31412721,192.56,192.5,2.6025]
[1735543023430,2.602,192.55,192.5,2.6025]
[1735543023634,8.31412721,192.56,192.51,2.6025]
[1735543024234,10.91612721,192.56,192.51,2.6025]
[1735543025536,8.31412721,192.56,192.49,8.31412721]
[1735543028339,10.91602721,192.56,192.51,2.6024]
[1735543029439,8.31412721,192.56,192.49,8.31412721]
[1735543029634,1.5713,192.57,192.49,8.31412721]
[1735543030341,1.5713,192.57,192.53,2.6022]
[1735543030542,8.31412721,192.58,192.51,11.29412721]
[1735543030839,9.78312721,192.6,192.53,8.31412721]
[1735543031039,9.78312721,192.6,192.56,2.6018]
[1735543031534,8.31412721,192.62,192.57,2.98]
[1735543031741,8.31412721,192.64,192.57,11.29412721]
[1735543032039,8.31412721,192.64,192.59,8.31412721]
[1735543032229,8.31412721,192.64,192.61,2.6011]
[1735543035335,10.91462721,192.66,192.61,2.6011]
[1735543035839,2.6007,192.65,192.6,2.6013]
[1735543037135,2.6008,192.64,192.6,2.6013]
[1735543038739,8.31412721,192.64,192.57,2.98]
[1735543039047,8.31412721,192.6,192.55,2.98]
[1735543039542,8.31412721,192.6,192.55,5.5819]
[1735543039742,8.31412721,192.62,192.55,11.29412721]
[1735543039943,8.31412721,192.64,192.57,8.31412721]
[1735543040739,2.601,192.63,192.58,2.6015]
[1735543040940,8.31412721,192.64,192.57,8.31412721]
[1735543041941,8.31412721,192.66,192.59,8.31412721]
[1735543042140,8.31412721,192.66,192.6,2.98]
[1735543042946,10.91462721,192.66,192.6,5.5812]
[1735543046244,8.31412721,192.66,192.6,2.98]
[1735543046448,8.31412721,192.68,192.61,8.31412721]
[1735543046951,8.31412721,192.68,192.63,2.6009]
[1735543047252,8.31412721,192.68,192.61,8.31412721]
[1735543047551,2.6001,192.69,192.63,8.31412721]
[1735543048049,8.31412721,192.7,192.6,2.98]
[1735543048050,10.91452721,192.68,192.61,8.31412721]
[1735543048449,10.91452721,192.68,192.62,2.6009]
[1735543048849,10.91452721,192.68,192.61,8.31412721]
[1735543049051,2.6001,192.69,192.64,2.6008]
[1735543050143,2.6003,192.68,192.64,2.6008]
[1735543051148,2.6003,192.68,192.63,8.31412721]
[1735543051348,2.6004,192.67,192.63,2.6009]
[1735543051952,8.31412721,192.64,192.59,2.98]
[1735543052143,8.31412721,192.64,192.57,2.98]
[1735543052347,2.6014,192.6,192.57,2.98]
[1735543052648,10.91552721,192.6,192.56,7.20832458]
[1735543053051,2.6015,192.59,192.54,13.89612721]
[1735543053250,8.31412721,192.58,192.52,24.27955179]
[1735543053948,8.31412721,192.58,192.52,7.20832458]
[1735543054254,8.31412721,192.58,192.5,11.29412721]
[1735543054450,2.98,192.64,192.5,11.29412721]
[1735543054451,8.31412721,192.56,192.5,11.29412721]
[1735543054649,8.31412721,192.56,192.5,2.98]
[1735543055054,2.602,192.55,192.5,2.98]
[1735543055355,8.31412721,192.56,192.5,2.98]
[1735543055949,8.31412721,192.52,192.45,15.52245179]
[1735543056155,8.31412721,192.5,192.45,7.20832458]
[1735543057247,8.31412721,192.52,192.45,15.52245179]
[1735543057449,8.31412721,192.52,192.45,8.31412721]
[1735543057849,8.31412721,192.52,192.46,2.6032]
[1735543058154,8.31412721,192.52,192.45,8.31412721]
[1735543059356,10.91652721,192.52,192.46,2.6032]
[1735543060057,8.31412721,192.5,192.44,5.5834]
[1735543060655,8.31412721,192.5,192.44,2.98]
[1735543061352,7.643,192.55,192.45,8.31412721]
[1735543061554,7.643,192.55,192.47,8.31412721]
[1735543061555,8.31412721,192.54,192.47,8.31412721]
[1735543062252,8.31412721,192.54,192.49,2.6028]
[1735543064457,8.31412721,192.54,192.5,2.6027]
[1735543065153,2.6019,192.57,192.52,2.6024]
[1735543065359,8.31412721,192.56,192.52,2.6024]
[1735543066163,8.31412721,192.56,192.51,2.6025]
[1735543066358,8.31412721,192.56,192.49,11.29412721]
[1735543066658,8.31412721,192.54,192.49,2.98]
[1735543067056,10.91642721,192.54,192.48,2.6028]
[1735543067361,10.91642721,192.54,192.47,8.31412721]
[1735543068560,8.31412721,192.54,192.49,2.6028]
[1735543069059,8.31412721,192.54,192.48,2.6029]
[1735543070357,4.5964,192.58,192.46,2.98]
[1735543070660,4.5964,192.58,192.45,2.6032]
[1735543070661,2.6027,192.51,192.45,2.6032]
[1735543071060,10.91652721,192.52,192.46,2.6032]
[1735543071256,8.31412721,192.52,192.44,8.31412721]
[1735543071758,8.31412721,192.52,192.46,8.31412721]
[1735543072464,8.31412721,192.52,192.48,2.6029]
[1735543077762,8.31412721,192.52,192.45,8.31412721]
[1735543077961,8.31412721,192.54,192.47,8.31412721]
[1735543078664,8.31412721,192.52,192.45,8.31412721]
[1735543079573,10.91652721,192.52,192.47,2.603]
[1735543080562,2.6028,192.49,192.44,2.6034]
[1735543080966,2.6028,192.49,192.45,2.6033]
[1735543081265,4.5964,192.58,192.46,8.31412721]
[1735543081266,8.31412721,192.52,192.46,8.31412721]
[1735543081769,8.31412721,192.52,192.44,8.31412721]
[1735543082463,10.91662721,192.52,192.47,2.603]
[1735543084672,2.6025,192.52,192.44,8.31412721]
[1735543085372,8.31412721,192.53,192.44,8.31412721]
[1735543085670,8.31412721,192.51,192.43,2.98]
[1735543086561,2.603,192.48,192.44,2.6034]
[1735543087064,2.6032,192.47,192.42,9.81192458]
[1735543087265,8.31412721,192.47,192.41,28.41481282]
[1735543088473,2.6035,192.44,192.4,2.604]
[1735543089172,2.98,192.54,192.4,2.604]
[1735543089373,2.6033,192.46,192.4,2.604]
[1735543090476,8.31412721,192.47,192.39,11.29412721]
[1735543090766,8.31412721,192.49,192.41,8.31412721]
[1735543091167,2.603,192.48,192.43,2.6036]
[1735543091570,8.31412721,192.49,192.41,8.31412721]
[1735543091772,8.31412721,192.49,192.44,2.6035]
[1735543092172,10.91692721,192.49,192.45,2.6034]
[1735543092975,8.31412721,192.49,192.46,2.6032]
[1735543093178,8.31412721,192.51,192.45,8.31412721]
[1735543094369,8.31412721,192.51,192.48,2.6029]
[1735543094576,8.31412721,192.55,192.47,8.31412721]
[1735543095072,2.6021,192.54,192.49,2.6028]
[1735543095577,8.31412721,192.55,192.49,8.31412721]
[1735543095877,8.31412721,192.55,192.49,11.29412721]
[1735543096176,10.91612721,192.55,192.5,2.6026]
[1735543097672,10.91602721,192.56,192.52,2.6023]
[1735543097977,8.31412721,192.56,192.49,11.29412721]
[1735543098181,8.31412721,192.56,192.51,2.6024]
[1735543098379,8.31412721,192.56,192.49,11.29412721]
[1735543098578,4.5964,192.58,192.47,8.31412721]
[1735543098579,8.31412721,192.54,192.47,8.31412721]
[1735543098777,8.31412721,192.52,192.48,7.20832458]
[1735543099080,8.31412721,192.5,192.48,7.20832458]
[1735543099277,2.6028,192.49,192.48,7.20832458]
[1735543099983,2.6032,192.47,192.39,46.45516813]
[1735543100379,8.31412721,192.46,192.39,44.86766813]
[1735543100583,2.6035,192.45,192.41,2.98]
[1735543101078,8.31412721,192.46,192.39,8.31412721]
[1735543102583,2.6036,192.44,192.39,10.91822721]
[1735543106488,2.6036,192.44,192.39,8.31412721]
[1735543106690,8.31412721,192.46,192.39,8.31412721]
[1735543106890,8.31412721,192.44,192.37,20.09665179]
[1735543107587,2.6036,192.43,192.37,22.70105179]
[1735543108087,2.6036,192.43,192.37,15.49272721]
[1735543108291,2.6035,192.45,192.39,10.91822721]
[1735543108488,2.6035,192.45,192.39,8.31412721]
[1735543109491,2.6035,192.45,192.4,2.604]
[1735543110391,2.6032,192.46,192.41,10.91792721]
[1735543110594,8.31412721,192.48,192.41,10.91792721]
[1735543110788,389.0,192.61,192.43,8.31412721]
[1735543110789,8.31412721,192.5,192.43,8.31412721]
[1735543111283,8.31412721,192.52,192.45,8.31412721]
[1735543112387,2.6026,192.51,192.45,8.31412721]
[1735543112689,8.31412721,192.48,192.42,11.29412721]
[1735543112888,8.31412721,192.46,192.42,2.98]
[1735543113093,8.31412721,192.44,192.41,28.41481282]
[1735543113394,8.31412721,192.44,192.4,7.20832458]
[1735543113591,2.6036,192.43,192.4,7.20832458]
[1735543113989,8.31412721,192.44,192.4,7.20832458]
[1735543114391,10.91762721,192.44,192.4,9.81232458]
[1735543114593,10.91762721,192.44,192.4,2.604]
[1735543114791,10.91742721,192.46,192.42,2.6037]
[1735543115085,8.31412721,192.46,192.42,2.6037]
[1735543115486,8.31412721,192.46,192.43,2.6036]
[1735543115690,8.31412721,192.48,192.4,8.31412721]
[1735543115896,8.31412721,192.48,192.42,8.31412721]
[1735543116890,10.91712721,192.48,192.43,2.6036]
[1735543119002,10.91712721,192.48,192.4,8.31412721]
[1735543120494,10.91712721,192.48,192.43,2.6035]
[1735543121396,5.6855,192.5,192.42,8.31412721]
[1735543121589,8.31412721,192.52,192.44,8.31412721]
[1735543122598,10.91652721,192.52,192.47,2.6031]
[1735543123088,10.91652721,192.52,192.44,8.31412721]
[1735543123289,10.91652721,192.52,192.48,2.6029]
[1735543123688,8.31412721,192.52,192.46,8.31412721]
[1735543123900,10.91632721,192.54,192.46,8.31412721]
[1735543124193,8.31412721,192.54,192.46,8.31412721]
[1735543124394,2.6024,192.53,192.48,2.6028]
[1735543125299,10.91632721,192.54,192.49,2.6028]
[1735543126594,8.31412721,192.52,192.44,36.72894003]
[1735543127296,8.31412721,192.52,192.45,2.98]
[1735543127597,2.6026,192.51,192.46,2.6031]
[1735543128800,2.6027,192.5,192.45,2.6033]
[1735543128997,10.91682721,192.5,192.45,2.6033]
[1735543134807,10.91682721,192.5,192.46,2.6032]
[1735543135006,8.31412721,192.5,192.44,8.31412721]
[1735543135205,8.31412721,192.52,192.46,8.31412721]
[1735543135506,8.31412721,192.52,192.48,2.6028]
[1735543136204,8.31412721,192.52,192.46,8.31412721]
[1735543136710,8.31412721,192.52,192.44,15.52245179]
[1735543137505,2.6026,192.51,192.46,2.6032]
[1735543138008,8.31412721,192.52,192.44,8.31412721]
[1735543138417,2.6026,192.51,192.47,2.603]
[1735543138622,2.6026,192.51,192.44,8.31412721]
[1735543139217,10.91682721,192.5,192.44,8.31412721]
[1735543139916,10.91682721,192.5,192.45,2.6032]
[1735543140312,8.31412721,192.48,192.43,7.20832458]
[1735543140620,8.31412721,192.44,192.43,7.20832458]
[1735543140917,10.91762721,192.44,192.43,7.20832458]
[1735543141113,10.91762721,192.44,192.41,44.86766813]
[1735543141318,2.6037,192.43,192.41,44.86766813]
[1735543141719,8.31412721,192.44,192.41,44.86766813]
[1735543141913,8.31412721,192.42,192.41,44.86766813]
[1735543142217,8.31412721,192.42,192.36,56.16179534]
[1735543142619,8.31412721,192.44,192.38,8.31412721]
[1735543143514,10.91762721,192.44,192.39,2.6041]
[1735543143718,8.31412721,192.46,192.38,8.31412721]
[1735543144512,8.31412721,192.48,192.4,8.31412721]
[1735543144718,8.31412721,192.48,192.42,8.31412721]
[1735543145223,8.31412721,192.48,192.44,2.6035]
[1735543145623,8.31412721,192.5,192.42,8.31412721]
[1735543145918,8.31412721,192.5,192.45,2.6033]
[1735543146615,8.31412721,192.5,192.44,2.6035]
[1735543146820,8.31412721,192.5,192.42,8.31412721]
[1735543148415,2.6029,192.49,192.45,2.6033]
[1735543148619,8.31412721,192.52,192.44,8.31412721]
[1735543148819,4.6531,192.62,192.46,8.31412721]
[1735543148820,8.31412721,192.54,192.46,8.31412721]
[1735543149119,8.31412721,192.52,192.47,2.6031]
[1735543150513,8.31412721,192.52,192.46,11.31412721]
[1735543150514,8.31412721,192.52,192.48,2.6029]
[1735543150722,3.0,192.56,192.48,2.6029]
[1735543150920,8.31412721,192.53,192.46,11.31412721]
[1735543151119,10.91652721,192.53,192.48,2.6029]
[1735543151424,8.31412721,192.53,192.48,2.6029]
[1735543151817,2.6025,192.52,192.48,2.6029]
[1735543152223,8.31412721,192.53,192.47,2.6031]
[1735543153517,2.6026,192.51,192.47,2.6031]
[1735543153726,2.6026,192.51,192.46,11.31412721]
[1735543153727,8.31412721,192.53,192.46,11.31412721]
[1735543154025,8.31412721,192.53,192.48,2.6029]
[1735543154219,2.6027,192.5,192.46,3.0]
[1735543155027,2.6027,192.5,192.44,8.31412721]
[1735543155225,8.31412721,192.51,192.45,2.6033]